[Event "*** Titled Tuesday Blitz"]
[Site "Chess.com"]
[Date "2019.11.05"]
[Round "2"]
[White "medalja"]
[Black "SantoBlue"]
[Result "0-1"]
[WhiteElo "2394"]
[BlackElo "2869"]
[TimeControl "180+2"]
[EndTime "13:25:22 PST"]
[Termination "SantoBlue won by checkmate"]

1. d4 {[%clk 0:03:01.9]} 1... Nf6 {[%clk 0:02:58.6]} 2. c4 {[%clk 0:03:02.3]}
2... g6 {[%clk 0:02:59]} 3. Nf3 {[%clk 0:03:01.4]} 3... Bg7 {[%clk 0:02:58.5]}
4. g3 {[%clk 0:03:02.3]} 4... O-O {[%clk 0:02:59.1]} 5. Bg2 {[%clk 0:03:03.5]}
5... d6 {[%clk 0:03:00.6]} 6. O-O {[%clk 0:03:03.7]} 6... Nc6 {[%clk 0:03:02.2]}
7. Nc3 {[%clk 0:03:04.6]} 7... a6 {[%clk 0:03:03]} 8. b3 {[%clk 0:03:04.5]} 8...
Rb8 {[%clk 0:03:03.8]} 9. Bb2 {[%clk 0:03:03.3]} 9... b5 {[%clk 0:03:04.7]} 10.
cxb5 {[%clk 0:03:05.2]} 10... axb5 {[%clk 0:03:05.7]} 11. Rc1 {[%clk 0:03:06.9]}
11... Bd7 {[%clk 0:03:03]} 12. Re1 {[%clk 0:03:02.2]} 12... b4 {[%clk
0:02:55.7]} 13. Na4 {[%clk 0:03:03]} 13... Na5 {[%clk 0:02:38.6]} 14. Qc2 {[%clk
0:03:02.8]} 14... Rc8 {[%clk 0:02:22.9]} 15. e4 {[%clk 0:02:58.8]} 15... Bxa4
{[%clk 0:02:16.7]} 16. bxa4 {[%clk 0:03:00.7]} 16... c5 {[%clk 0:02:17.9]} 17.
Qd2 {[%clk 0:02:15.9]} 17... cxd4 {[%clk 0:01:58.5]} 18. Bxd4 {[%clk 0:02:13.5]}
18... Rxc1 {[%clk 0:01:57.6]} 19. Qxc1 {[%clk 0:02:10.8]} 19... Qd7 {[%clk
0:01:53.2]} 20. Qb2 {[%clk 0:02:07]} 20... Qxa4 {[%clk 0:01:52.3]} 21. e5 {[%clk
0:02:00.5]} 21... dxe5 {[%clk 0:01:43.4]} 22. Nxe5 {[%clk 0:02:00.1]} 22... h5
{[%clk 0:01:38.3]} 23. h3 {[%clk 0:01:59]} 23... Rc8 {[%clk 0:01:30.1]} 24. Re2
{[%clk 0:01:49.5]} 24... Qd1+ {[%clk 0:01:29]} 25. Kh2 {[%clk 0:01:50]} 25...
Rc1 {[%clk 0:01:29.8]} 26. f4 {[%clk 0:01:32.9]} 26... Nc4 {[%clk 0:01:27.3]}
27. Nxc4 {[%clk 0:01:27.9]} 27... Ng4+ {[%clk 0:01:18.5]} 28. hxg4 {[%clk
0:01:24.3]} 28... Bxd4 {[%clk 0:01:19.8]} 29. Qd2 {[%clk 0:01:04.3]} 29... Qg1+
{[%clk 0:01:19.7]} 30. Kh3 {[%clk 0:01:05.3]} 30... hxg4+ {[%clk 0:01:20.4]} 31.
Kxg4 {[%clk 0:01:06.3]} 31... Rxc4 {[%clk 0:01:18.6]} 32. Rxe7 {[%clk
0:01:02.4]} 32... Rc5 {[%clk 0:01:08.8]} 33. Re1 {[%clk 0:00:43]} 33... Qh2
{[%clk 0:01:08.2]} 34. Kf3 {[%clk 0:00:27.4]} 34... Qh5+ {[%clk 0:00:48.1]} 35.
g4 {[%clk 0:00:28.2]} 35... Qd5+ {[%clk 0:00:30]} 36. Kg3 {[%clk 0:00:29.3]}
36... Qd8 {[%clk 0:00:30.9]} 37. Rh1 {[%clk 0:00:19.2]} 37... Rc3+ {[%clk
0:00:28.3]} 38. Bf3 {[%clk 0:00:20.4]} 38... Qa8 {[%clk 0:00:16.6]} 39. Qe2
{[%clk 0:00:21.4]} 39... g5 {[%clk 0:00:11.2]} 40. fxg5 {[%clk 0:00:18.6]} 40...
Qc8 {[%clk 0:00:10.8]} 41. Qe4 {[%clk 0:00:17.1]} 41... Qc7+ {[%clk 0:00:12.2]}
42. Kh4 {[%clk 0:00:09.9]} 42... Bf2+ {[%clk 0:00:12.2]} 43. Kh5 {[%clk
0:00:11]} 43... Re3 {[%clk 0:00:08.6]} 44. Qa8+ {[%clk 0:00:10.4]} 44... Kg7
{[%clk 0:00:09.7]} 45. Qa6 {[%clk 0:00:10.1]} 45... Re6 {[%clk 0:00:08.5]} 46.
Qd3 {[%clk 0:00:07.2]} 46... Qb8 {[%clk 0:00:06.2]} 47. g6 {[%clk 0:00:05.9]}
47... fxg6+ {[%clk 0:00:05.1]} 48. Kg5 {[%clk 0:00:07.2]} 48... Qe5+ {[%clk
0:00:04.8]} 49. Qf5 {[%clk 0:00:08.1]} 49... gxf5 {[%clk 0:00:05.5]} 50. gxf5
{[%clk 0:00:10]} 50... Be3+ {[%clk 0:00:06.5]} 51. Kg4 {[%clk 0:00:10.9]} 51...
Qf4+ {[%clk 0:00:07.9]} 52. Kh3 {[%clk 0:00:12.4]} 52... Qxf3+ {[%clk
0:00:09.3]} 53. Kh2 {[%clk 0:00:13.8]} 53... Rh6# {[%clk 0:00:11]} 0-1

[Event "*** Titled Tuesday Blitz"]
[Site "Chess.com"]
[Date "2019.11.05"]
[Round "2"]
[White "gena217"]
[Black "nailbeshirli"]
[Result "0-1"]
[WhiteElo "2922"]
[BlackElo "2639"]
[TimeControl "180+2"]
[EndTime "13:25:24 PST"]
[Termination "nailbeshirli won by resignation"]

1. e4 {[%clk 0:03:01.9]} 1... c5 {[%clk 0:02:54.6]} 2. Nf3 {[%clk 0:02:59.2]}
2... d6 {[%clk 0:02:55]} 3. d4 {[%clk 0:02:58.6]} 3... cxd4 {[%clk 0:02:56]} 4.
Qxd4 {[%clk 0:03:00.5]} 4... Nf6 {[%clk 0:02:57.8]} 5. Bb5+ {[%clk 0:03:00.6]}
5... Nc6 {[%clk 0:02:57.4]} 6. c4 {[%clk 0:03:01.1]} 6... Bd7 {[%clk 0:02:57.8]}
7. Qd3 {[%clk 0:03:02]} 7... g6 {[%clk 0:02:58.1]} 8. O-O {[%clk 0:03:02.4]}
8... Bg7 {[%clk 0:02:58.9]} 9. Nc3 {[%clk 0:03:03.9]} 9... O-O {[%clk
0:02:59.6]} 10. h3 {[%clk 0:03:04.8]} 10... a6 {[%clk 0:02:49.4]} 11. Bxc6
{[%clk 0:03:04.9]} 11... Bxc6 {[%clk 0:02:47.2]} 12. Nd4 {[%clk 0:03:05.4]}
12... Rc8 {[%clk 0:02:47]} 13. Be3 {[%clk 0:03:05.6]} 13... Nd7 {[%clk 0:02:47]}
14. Rac1 {[%clk 0:03:05.7]} 14... Nc5 {[%clk 0:02:33.6]} 15. Qc2 {[%clk
0:03:04.9]} 15... Ne6 {[%clk 0:02:29.5]} 16. Nxe6 {[%clk 0:03:04.5]} 16... fxe6
{[%clk 0:02:29]} 17. Ne2 {[%clk 0:03:06.1]} 17... Qa5 {[%clk 0:02:25.3]} 18. b3
{[%clk 0:03:03.6]} 18... b5 {[%clk 0:02:14.2]} 19. c5 {[%clk 0:03:04]} 19...
dxc5 {[%clk 0:02:03.5]} 20. Qxc5 {[%clk 0:02:56.6]} 20... Rfe8 {[%clk
0:01:57.3]} 21. Qc2 {[%clk 0:02:29.4]} 21... Bb7 {[%clk 0:01:48.6]} 22. Qb1
{[%clk 0:02:29.6]} 22... b4 {[%clk 0:01:48.2]} 23. f3 {[%clk 0:02:24.2]} 23...
Qb5 {[%clk 0:01:42]} 24. Nf4 {[%clk 0:02:23.4]} 24... Bh6 {[%clk 0:01:39.1]} 25.
Qb2 {[%clk 0:02:06.3]} 25... Red8 {[%clk 0:01:35.8]} 26. Qf2 {[%clk 0:01:59.5]}
26... Rc3 {[%clk 0:01:28]} 27. Nd5 {[%clk 0:01:40.9]} 27... Bxe3 {[%clk
0:01:21.7]} 28. Nxe3 {[%clk 0:01:42.8]} 28... a5 {[%clk 0:01:14.2]} 29. Nc4
{[%clk 0:01:23.4]} 29... Ba6 {[%clk 0:01:13.2]} 30. Rcd1 {[%clk 0:01:09.5]}
30... Qb8 {[%clk 0:01:09.9]} 31. Qc5 {[%clk 0:01:06.9]} 31... Bxc4 {[%clk
0:01:04.2]} 32. bxc4 {[%clk 0:01:07.7]} 32... Kf7 {[%clk 0:01:03]} 33. Qxa5
{[%clk 0:01:04.8]} 33... Rxd1 {[%clk 0:00:57.5]} 34. Rxd1 {[%clk 0:01:06.7]}
34... Qg3 {[%clk 0:00:55.8]} 35. Qa4 {[%clk 0:00:48.6]} 35... b3 {[%clk
0:00:28]} 36. Qxb3 {[%clk 0:00:16.9]} 36... Rxb3 {[%clk 0:00:27.4]} 37. axb3
{[%clk 0:00:18.8]} 37... h5 {[%clk 0:00:24.4]} 38. c5 {[%clk 0:00:18.8]} 38...
Qe5 {[%clk 0:00:23.8]} 39. Rc1 {[%clk 0:00:19.2]} 39... Qb2 {[%clk 0:00:22.9]}
40. Rf1 {[%clk 0:00:20]} 40... Qd4+ {[%clk 0:00:21.5]} 41. Kh1 {[%clk
0:00:20.6]} 41... Qxc5 {[%clk 0:00:23.1]} 42. f4 {[%clk 0:00:22]} 42... Qb4
{[%clk 0:00:24.3]} 43. e5 {[%clk 0:00:22.2]} 43... Qxb3 {[%clk 0:00:25.2]} 44.
Kh2 {[%clk 0:00:23.5]} 44... Qd3 {[%clk 0:00:26]} 45. Rf3 {[%clk 0:00:25]} 45...
Qe4 {[%clk 0:00:26.2]} 46. h4 {[%clk 0:00:26.1]} 46... Qf5 {[%clk 0:00:26.2]}
47. Rf2 {[%clk 0:00:25.9]} 47... Qg4 {[%clk 0:00:27.4]} 48. g3 {[%clk
0:00:27.4]} 48... Qf5 {[%clk 0:00:28.9]} 49. Rg2 {[%clk 0:00:28.4]} 49... Qe4
{[%clk 0:00:30.1]} 50. Ra2 {[%clk 0:00:29.2]} 50... Qd4 {[%clk 0:00:30.9]} 51.
Rg2 {[%clk 0:00:30.7]} 51... Ke8 {[%clk 0:00:31.9]} 52. Rc2 {[%clk 0:00:31.5]}
52... Kd7 {[%clk 0:00:32.9]} 53. Rg2 {[%clk 0:00:30.7]} 53... Kc6 {[%clk
0:00:33.4]} 54. Re2 {[%clk 0:00:27.4]} 54... Kd5 {[%clk 0:00:34.5]} 55. Kg2
{[%clk 0:00:29]} 55... Qd3 {[%clk 0:00:35.2]} 56. Rf2 {[%clk 0:00:30.1]} 56...
Ke4 {[%clk 0:00:35.3]} 57. Rf1 {[%clk 0:00:31.6]} 57... Qxf1+ {[%clk 0:00:33.7]}
58. Kxf1 {[%clk 0:00:32.4]} 58... Kf3 {[%clk 0:00:35]} 0-1

[Event "*** Titled Tuesday Blitz"]
[Site "Chess.com"]
[Date "2019.11.05"]
[Round "2"]
[White "codapbg94"]
[Black "PlotnikovPavel"]
[Result "0-1"]
[WhiteElo "2155"]
[BlackElo "2442"]
[TimeControl "180+2"]
[EndTime "13:25:24 PST"]
[Termination "PlotnikovPavel won by resignation"]

1. e4 {[%clk 0:03:00.2]} 1... c5 {[%clk 0:02:58.9]} 2. Nf3 {[%clk 0:03:00.9]}
2... d6 {[%clk 0:02:58.8]} 3. c3 {[%clk 0:03:00.4]} 3... Nf6 {[%clk 0:02:57.9]}
4. h3 {[%clk 0:03:01.7]} 4... Nc6 {[%clk 0:02:57.9]} 5. Bd3 {[%clk 0:03:03]}
5... d5 {[%clk 0:02:52]} 6. e5 {[%clk 0:03:02.9]} 6... Ng8 {[%clk 0:02:50.2]} 7.
Bb5 {[%clk 0:02:52]} 7... Bf5 {[%clk 0:02:47]} 8. d3 {[%clk 0:02:43.7]} 8... e6
{[%clk 0:02:46.8]} 9. O-O {[%clk 0:02:38.9]} 9... Ne7 {[%clk 0:02:44.2]} 10. Bf4
{[%clk 0:02:35.6]} 10... h6 {[%clk 0:02:43.4]} 11. c4 {[%clk 0:02:25.9]} 11...
a6 {[%clk 0:02:40.7]} 12. Ba4 {[%clk 0:02:25]} 12... Qc7 {[%clk 0:02:31.1]} 13.
Re1 {[%clk 0:02:25.3]} 13... O-O-O {[%clk 0:02:28.7]} 14. Qb3 {[%clk 0:00:57.4]}
14... dxc4 {[%clk 0:02:03.1]} 15. dxc4 {[%clk 0:00:54.1]} 15... Rd3 {[%clk
0:02:01.4]} 16. Nc3 {[%clk 0:00:51.1]} 16... Nd4 {[%clk 0:01:52.8]} 17. Qa3
{[%clk 0:00:20]} 17... Nxf3+ {[%clk 0:01:32]} 18. gxf3 {[%clk 0:00:21.9]} 18...
Rxf3 {[%clk 0:01:29.4]} 19. Be3 {[%clk 0:00:23.4]} 19... Ng6 {[%clk 0:01:22.3]}
20. Bd1 {[%clk 0:00:17.9]} 20... Nxe5 {[%clk 0:01:21.2]} 21. Bxf3 {[%clk
0:00:17.2]} 21... Nxf3+ {[%clk 0:01:22]} 22. Kg2 {[%clk 0:00:19.1]} 22... Nxe1+
{[%clk 0:01:22.9]} 23. Rxe1 {[%clk 0:00:21]} 23... Be7 {[%clk 0:01:21.2]} 24.
Na4 {[%clk 0:00:21.8]} 24... Qc6+ {[%clk 0:01:19.6]} 25. f3 {[%clk 0:00:21.6]}
25... Bxh3+ {[%clk 0:01:14.8]} 26. Kxh3 {[%clk 0:00:20.5]} 26... Qxf3+ {[%clk
0:01:15.4]} 27. Kh2 {[%clk 0:00:22]} 27... Bd6+ {[%clk 0:01:12.7]} 28. Kg1
{[%clk 0:00:23.1]} 28... Qg4+ {[%clk 0:01:08]} 29. Kf1 {[%clk 0:00:22.8]} 29...
Qxc4+ {[%clk 0:01:08.1]} 30. Re2 {[%clk 0:00:20.1]} 30... Rd8 {[%clk 0:01:04]}
31. Nc3 {[%clk 0:00:20.1]} 31... Be7 {[%clk 0:00:56.1]} 32. Qb3 {[%clk
0:00:19.3]} 32... Qxb3 {[%clk 0:00:56.5]} 33. axb3 {[%clk 0:00:21.2]} 33... Rd3
{[%clk 0:00:54.9]} 34. Kf2 {[%clk 0:00:20.3]} 34... Bh4+ {[%clk 0:00:54]} 35.
Kf3 {[%clk 0:00:19.7]} 35... Bg5 {[%clk 0:00:54.6]} 36. Ke4 {[%clk 0:00:18.7]}
36... Rxe3+ {[%clk 0:00:55.4]} 37. Rxe3 {[%clk 0:00:19.6]} 37... Bxe3 {[%clk
0:00:57.3]} 38. Kxe3 {[%clk 0:00:21]} 38... Kd7 {[%clk 0:00:57.5]} 39. Ke4
{[%clk 0:00:22.1]} 39... f6 {[%clk 0:00:56.9]} 40. Ne2 {[%clk 0:00:21.6]} 40...
g5 {[%clk 0:00:57]} 41. Ng3 {[%clk 0:00:22.2]} 41... Kd6 {[%clk 0:00:57.5]} 42.
Nh5 {[%clk 0:00:22.3]} 42... f5+ {[%clk 0:00:58.6]} 43. Ke3 {[%clk 0:00:23.1]}
43... Ke5 {[%clk 0:00:58.7]} 44. Ng7 {[%clk 0:00:23.2]} 44... g4 {[%clk
0:00:56.7]} 45. Nh5 {[%clk 0:00:23.2]} 45... b5 {[%clk 0:00:57]} 46. Nf4 {[%clk
0:00:23]} 46... a5 {[%clk 0:00:56.4]} 47. Nd3+ {[%clk 0:00:23.4]} 47... Kd5
{[%clk 0:00:57.1]} 48. Nf4+ {[%clk 0:00:24.4]} 48... Kd6 {[%clk 0:00:56.7]} 49.
Ne2 {[%clk 0:00:19.6]} 49... e5 {[%clk 0:00:57.3]} 50. Nc3 {[%clk 0:00:19.6]}
50... Kc6 {[%clk 0:00:58.2]} 51. Ne2 {[%clk 0:00:20]} 51... h5 {[%clk
0:00:57.1]} 52. Kf2 {[%clk 0:00:19.9]} 52... h4 {[%clk 0:00:54.1]} 53. Nc3
{[%clk 0:00:19]} 53... h3 {[%clk 0:00:48.2]} 54. Nd1 {[%clk 0:00:19.7]} 54... f4
{[%clk 0:00:47.8]} 55. Nc3 {[%clk 0:00:19.6]} 55... g3+ {[%clk 0:00:48.8]} 56.
Kg1 {[%clk 0:00:20.3]} 56... h2+ {[%clk 0:00:46.8]} 57. Kg2 {[%clk 0:00:20.8]}
57... f3+ {[%clk 0:00:45.8]} 0-1

[Event "*** Titled Tuesday Blitz"]
[Site "Chess.com"]
[Date "2019.11.05"]
[Round "2"]
[White "Genghis_K"]
[Black "vladimirdamjanovic"]
[Result "1-0"]
[WhiteElo "2907"]
[BlackElo "2605"]
[TimeControl "180+2"]
[EndTime "13:25:30 PST"]
[Termination "Genghis_K won by resignation"]

1. e4 {[%clk 0:03:01.9]} 1... c5 {[%clk 0:03:00.6]} 2. Nf3 {[%clk 0:03:01.4]}
2... d6 {[%clk 0:03:02.1]} 3. d4 {[%clk 0:03:02.8]} 3... cxd4 {[%clk 0:03:03.6]}
4. Qxd4 {[%clk 0:03:03.6]} 4... a6 {[%clk 0:03:04]} 5. Be2 {[%clk 0:03:02]} 5...
Nc6 {[%clk 0:03:04.6]} 6. Qe3 {[%clk 0:03:02]} 6... Bg4 {[%clk 0:03:05.4]} 7. h3
{[%clk 0:03:01.5]} 7... Bxf3 {[%clk 0:03:05.8]} 8. Bxf3 {[%clk 0:03:03.1]} 8...
g6 {[%clk 0:03:04.6]} 9. O-O {[%clk 0:03:02]} 9... Bg7 {[%clk 0:03:02.7]} 10.
Rd1 {[%clk 0:02:58.5]} 10... Nf6 {[%clk 0:03:00.3]} 11. c4 {[%clk 0:02:58]}
11... Qa5 {[%clk 0:02:37.9]} 12. Nc3 {[%clk 0:02:53.8]} 12... O-O {[%clk
0:02:35.2]} 13. Bd2 {[%clk 0:02:49]} 13... Qc5 {[%clk 0:02:28.1]} 14. b3 {[%clk
0:02:26.3]} 14... Qxe3 {[%clk 0:02:15.9]} 15. Bxe3 {[%clk 0:02:27.1]} 15... Rfc8
{[%clk 0:02:15.4]} 16. Rac1 {[%clk 0:02:24.3]} 16... h5 {[%clk 0:02:08]} 17. Be2
{[%clk 0:02:12.5]} 17... Kh7 {[%clk 0:01:53.2]} 18. Nd5 {[%clk 0:01:44.9]} 18...
Nxd5 {[%clk 0:01:52.7]} 19. exd5 {[%clk 0:01:44]} 19... Ne5 {[%clk 0:01:48.4]}
20. a4 {[%clk 0:01:36.2]} 20... Bh6 {[%clk 0:01:39.7]} 21. f4 {[%clk 0:01:34.7]}
21... Nd7 {[%clk 0:01:39.7]} 22. a5 {[%clk 0:01:35.6]} 22... Rc7 {[%clk
0:01:21.6]} 23. g3 {[%clk 0:01:04.1]} 23... Nc5 {[%clk 0:01:03.3]} 24. b4 {[%clk
0:00:59.4]} 24... Ne4 {[%clk 0:01:03.2]} 25. Kg2 {[%clk 0:00:58.3]} 25... Bg7
{[%clk 0:01:03.7]} 26. Bd3 {[%clk 0:00:50.5]} 26... Nc3 {[%clk 0:00:54.1]} 27.
Re1 {[%clk 0:00:51.9]} 27... Rac8 {[%clk 0:00:47.8]} 28. Bd2 {[%clk 0:00:43.2]}
28... Na4 {[%clk 0:00:32.6]} 29. f5 {[%clk 0:00:24.2]} 29... Nb2 {[%clk
0:00:33.2]} 30. fxg6+ {[%clk 0:00:25.5]} 30... fxg6 {[%clk 0:00:34.9]} 31. Bb1
{[%clk 0:00:27]} 31... Nxc4 {[%clk 0:00:32.1]} 32. Bg5 {[%clk 0:00:22.3]} 32...
Ne5 {[%clk 0:00:29]} 33. Rxc7 {[%clk 0:00:23.7]} 33... Rxc7 {[%clk 0:00:30.9]}
34. Bf4 {[%clk 0:00:25.3]} 34... Rc4 {[%clk 0:00:28.6]} 35. Re4 {[%clk
0:00:26.2]} 35... Rxe4 {[%clk 0:00:27.4]} 36. Bxe4 {[%clk 0:00:28.1]} 36... Bf6
{[%clk 0:00:26.3]} 37. h4 {[%clk 0:00:22.2]} 37... Kg7 {[%clk 0:00:27.2]} 38.
Bc2 {[%clk 0:00:20.6]} 38... Kf7 {[%clk 0:00:23.9]} 39. Ba4 {[%clk 0:00:21.4]}
39... Nd3 {[%clk 0:00:21.4]} 40. Bd2 {[%clk 0:00:22.9]} 40... Bb2 {[%clk
0:00:19.9]} 41. b5 {[%clk 0:00:21.5]} 41... axb5 {[%clk 0:00:18.2]} 42. Bxb5
{[%clk 0:00:23.4]} 42... Ba3 {[%clk 0:00:15.7]} 43. Bxd3 {[%clk 0:00:24.1]}
43... Bc5 {[%clk 0:00:14.3]} 44. Kf3 {[%clk 0:00:24.6]} 44... Kf6 {[%clk
0:00:14.1]} 45. Bc3+ {[%clk 0:00:25.2]} 45... Kf7 {[%clk 0:00:14.8]} 46. Bb5
{[%clk 0:00:25.3]} 46... e6 {[%clk 0:00:14.9]} 47. Bc4 {[%clk 0:00:23.9]} 47...
e5 {[%clk 0:00:14.2]} 48. Be1 {[%clk 0:00:23.7]} 48... Ke7 {[%clk 0:00:15]} 49.
Bd3 {[%clk 0:00:24.7]} 49... Kf6 {[%clk 0:00:15.8]} 50. Be4 {[%clk 0:00:26.1]}
50... Kf7 {[%clk 0:00:16.6]} 51. Ke2 {[%clk 0:00:27.4]} 51... Kf6 {[%clk
0:00:17.1]} 52. Kd3 {[%clk 0:00:28.9]} 52... g5 {[%clk 0:00:18.2]} 53. hxg5+
{[%clk 0:00:29.3]} 53... Kxg5 {[%clk 0:00:19.5]} 54. Ke2 {[%clk 0:00:27.1]}
54... Kg4 {[%clk 0:00:20.2]} 55. Bf3+ {[%clk 0:00:28.3]} 55... Kg5 {[%clk
0:00:21.7]} 56. Bd2+ {[%clk 0:00:29.4]} 56... Kg6 {[%clk 0:00:22.6]} 57. Be4+
{[%clk 0:00:30.8]} 57... Kf6 {[%clk 0:00:23.3]} 58. Kf3 {[%clk 0:00:31.5]} 58...
Bd4 {[%clk 0:00:23.7]} 59. Kg2 {[%clk 0:00:32.7]} 59... Kg7 {[%clk 0:00:20.8]}
60. Kh3 {[%clk 0:00:34.1]} 60... Bf2 {[%clk 0:00:20.8]} 61. Kh4 {[%clk
0:00:35.3]} 61... Be1 {[%clk 0:00:19.4]} 62. Bxe1 {[%clk 0:00:34.4]} 1-0

[Event "*** Titled Tuesday Blitz"]
[Site "Chess.com"]
[Date "2019.11.05"]
[Round "2"]
[White "jlucasvf"]
[Black "Kimster98"]
[Result "1-0"]
[WhiteElo "2798"]
[BlackElo "2552"]
[TimeControl "180+2"]
[EndTime "13:25:30 PST"]
[Termination "jlucasvf won by resignation"]

1. e4 {[%clk 0:03:01.9]} 1... e5 {[%clk 0:03:00.3]} 2. Qg4 {[%clk 0:03:02.9]}
2... Nf6 {[%clk 0:02:57.5]} 3. Qg3 {[%clk 0:03:03.3]} 3... Nxe4 {[%clk
0:02:54.7]} 4. Qxe5+ {[%clk 0:02:59.4]} 4... Qe7 {[%clk 0:02:55.2]} 5. Qxe7+
{[%clk 0:03:00.4]} 5... Bxe7 {[%clk 0:02:57.1]} 6. Nc3 {[%clk 0:02:56.8]} 6...
Nxc3 {[%clk 0:02:56.7]} 7. dxc3 {[%clk 0:02:54.8]} 7... d5 {[%clk 0:02:56.1]} 8.
Bf4 {[%clk 0:02:53.7]} 8... c6 {[%clk 0:02:56.4]} 9. Bd3 {[%clk 0:02:52.1]} 9...
Be6 {[%clk 0:02:55.2]} 10. Nf3 {[%clk 0:02:50.6]} 10... Nd7 {[%clk 0:02:54.3]}
11. Nd4 {[%clk 0:02:49]} 11... Nc5 {[%clk 0:02:50.4]} 12. Nxe6 {[%clk
0:02:49.7]} 12... Nxd3+ {[%clk 0:02:48.7]} 13. cxd3 {[%clk 0:02:49.8]} 13...
fxe6 {[%clk 0:02:50.3]} 14. d4 {[%clk 0:02:50.5]} 14... O-O {[%clk 0:02:29.5]}
15. Bg3 {[%clk 0:02:50.8]} 15... c5 {[%clk 0:02:17.3]} 16. Kd2 {[%clk
0:02:44.1]} 16... cxd4 {[%clk 0:02:17.7]} 17. cxd4 {[%clk 0:02:44.4]} 17... Rac8
{[%clk 0:02:19.2]} 18. Rhe1 {[%clk 0:02:43.2]} 18... Kf7 {[%clk 0:02:16.8]} 19.
Kd3 {[%clk 0:02:38.1]} 19... Rc6 {[%clk 0:02:15.7]} 20. Rac1 {[%clk 0:02:36.1]}
20... Rfc8 {[%clk 0:02:15.3]} 21. Rxc6 {[%clk 0:02:36.8]} 21... Rxc6 {[%clk
0:02:17.2]} 22. Bf4 {[%clk 0:02:36.4]} 22... Bf6 {[%clk 0:02:10.5]} 23. f3
{[%clk 0:02:35.3]} 23... Rc4 {[%clk 0:02:03.9]} 24. Be3 {[%clk 0:02:34.3]} 24...
h5 {[%clk 0:01:56]} 25. b3 {[%clk 0:02:35]} 25... Rc6 {[%clk 0:01:56.2]} 26. g4
{[%clk 0:02:26.4]} 26... g6 {[%clk 0:01:56.1]} 27. Re2 {[%clk 0:02:24.9]} 27...
Rc8 {[%clk 0:01:47.6]} 28. Rg2 {[%clk 0:02:20.9]} 28... a6 {[%clk 0:01:42.2]}
29. h3 {[%clk 0:02:03.8]} 29... b5 {[%clk 0:00:53.8]} 30. Rb2 {[%clk 0:01:58.4]}
30... Be7 {[%clk 0:00:51]} 31. a4 {[%clk 0:01:56.3]} 31... Bb4 {[%clk 0:00:36]}
32. axb5 {[%clk 0:01:54.5]} 32... axb5 {[%clk 0:00:33.3]} 33. Rc2 {[%clk
0:01:43.2]} 33... Rxc2 {[%clk 0:00:33.3]} 34. Kxc2 {[%clk 0:01:44.2]} 34... Kf6
{[%clk 0:00:30.2]} 35. Bf4 {[%clk 0:01:44.8]} 35... Kf7 {[%clk 0:00:28.1]} 36.
Be5 {[%clk 0:01:45.2]} 36... Ke7 {[%clk 0:00:24]} 37. Kd3 {[%clk 0:01:44.4]}
37... Kf7 {[%clk 0:00:18.6]} 38. Ke3 {[%clk 0:01:45.5]} 38... hxg4 {[%clk
0:00:18.7]} 39. fxg4 {[%clk 0:01:45.7]} 39... g5 {[%clk 0:00:20.1]} 40. Bc7
{[%clk 0:01:43.3]} 40... Kg6 {[%clk 0:00:17.8]} 41. Bd8 {[%clk 0:01:44.2]} 41...
Bd6 {[%clk 0:00:18.6]} 42. Kd3 {[%clk 0:01:44.8]} 42... Bb4 {[%clk 0:00:19.4]}
43. Kc2 {[%clk 0:01:41.4]} 43... Be1 {[%clk 0:00:19.6]} 44. Be7 {[%clk 0:01:41]}
44... Ba5 {[%clk 0:00:20.3]} 45. Bc5 {[%clk 0:01:37.8]} 45... Be1 {[%clk
0:00:20.4]} 46. Bb6 {[%clk 0:01:37.8]} 46... Bb4 {[%clk 0:00:21.4]} 47. Kb2
{[%clk 0:01:38.6]} 47... Kf6 {[%clk 0:00:21.5]} 48. Ka2 {[%clk 0:01:35.5]} 48...
Kg6 {[%clk 0:00:21.4]} 49. Bc5 {[%clk 0:01:35]} 49... Be1 {[%clk 0:00:21.6]} 50.
Ka3 {[%clk 0:01:34.6]} 50... Kf6 {[%clk 0:00:21.7]} 51. Bb6 {[%clk 0:01:35.2]}
51... Kg6 {[%clk 0:00:21.1]} 52. Bd8 {[%clk 0:01:36.1]} 52... Bc3 {[%clk
0:00:21.3]} 53. Bb6 {[%clk 0:01:35.6]} 53... Be1 {[%clk 0:00:22.4]} 54. Bc5
{[%clk 0:01:32.6]} 54... Bd2 {[%clk 0:00:20.2]} 55. Bb4 {[%clk 0:01:33.3]} 55...
Bf4 {[%clk 0:00:20.5]} 56. Ba5 {[%clk 0:01:27.5]} 56... Bd6+ {[%clk 0:00:20.7]}
57. Kb2 {[%clk 0:01:29.1]} 57... Be7 {[%clk 0:00:18.8]} 58. Kc3 {[%clk 0:01:29]}
58... Bd6 {[%clk 0:00:19.8]} 59. Bb6 {[%clk 0:01:27.8]} 59... b4+ {[%clk
0:00:09.6]} 60. Kd3 {[%clk 0:01:27.7]} 60... e5 {[%clk 0:00:08.9]} 61. dxe5
{[%clk 0:01:16.8]} 61... Bxe5 {[%clk 0:00:10.8]} 62. Bc5 {[%clk 0:01:13.8]}
62... Bc3 {[%clk 0:00:11.5]} 63. Bd4 {[%clk 0:01:15]} 63... Be1 {[%clk
0:00:12.9]} 64. Be5 {[%clk 0:01:15.9]} 64... Bf2 {[%clk 0:00:13.8]} 65. Bd6
{[%clk 0:01:17.3]} 65... Be1 {[%clk 0:00:14.8]} 66. Kd4 {[%clk 0:01:17.3]} 66...
Kf6 {[%clk 0:00:14.4]} 67. Kxd5 {[%clk 0:01:18.1]} 67... Bd2 {[%clk 0:00:15.8]}
68. Kc4 {[%clk 0:01:12.4]} 68... Ke6 {[%clk 0:00:17.7]} 69. Bxb4 {[%clk
0:01:13.5]} 69... Bf4 {[%clk 0:00:19.3]} 70. Kd3 {[%clk 0:01:14.1]} 70... Kd5
{[%clk 0:00:19.9]} 71. Bd2 {[%clk 0:01:15.5]} 1-0